[Event "Early-Titled-Tuesday-Blitz-April-02-2024"]
[Site "Chess.com"]
[Date "2024.04.02"]
[Round "7"]
[White "Bykov_Egor"]
[Black "Brahianzevich"]
[Result "0-1"]
[WhiteElo "2636"]
[BlackElo "2546"]
[TimeControl "180+1"]
[EndTime "9:17:40 PDT"]
[Termination "Brahianzevich won on time"]

1. e4 {[%clk 0:02:59.5]} 1... c5 {[%clk 0:02:59.7]} 2. Nf3 {[%clk 0:02:57.5]}
2... d6 {[%clk 0:02:59.7]} 3. d4 {[%clk 0:02:57.3]} 3... cxd4 {[%clk 0:03:00.6]}
4. Nxd4 {[%clk 0:02:57.8]} 4... Nf6 {[%clk 0:03:01]} 5. Nc3 {[%clk 0:02:58]}
5... a6 {[%clk 0:03:01.8]} 6. Be3 {[%clk 0:02:57.1]} 6... Ng4 {[%clk 0:03:01.4]}
7. Bc1 {[%clk 0:02:57.3]} 7... Nf6 {[%clk 0:03:01.4]} 8. Bg5 {[%clk 0:02:54]}
8... e6 {[%clk 0:03:00.4]} 9. f4 {[%clk 0:02:52.8]} 9... h6 {[%clk 0:03:00.6]}
10. Bh4 {[%clk 0:02:48.9]} 10... Qb6 {[%clk 0:03:01.3]} 11. Qd2 {[%clk
0:02:26.5]} 11... Qxb2 {[%clk 0:03:00.4]} 12. Rb1 {[%clk 0:02:26.3]} 12... Qa3
{[%clk 0:03:01]} 13. e5 {[%clk 0:01:53]} 13... dxe5 {[%clk 0:02:59.7]} 14. fxe5
{[%clk 0:01:53.9]} 14... g5 {[%clk 0:03:00.2]} 15. Bg3 {[%clk 0:01:29.3]} 15...
Nh5 {[%clk 0:02:59.7]} 16. Be2 {[%clk 0:01:14.7]} 16... Nxg3 {[%clk 0:02:55.2]}
17. hxg3 {[%clk 0:01:15.6]} 17... Qa5 {[%clk 0:02:51.2]} 18. O-O {[%clk
0:00:58.6]} 18... Qxe5 {[%clk 0:02:49.6]} 19. Bh5 {[%clk 0:00:54.2]} 19... Bc5
{[%clk 0:02:42.8]} 20. Ne2 {[%clk 0:00:46.4]} 20... O-O {[%clk 0:02:37.7]} 21.
Kh2 {[%clk 0:00:39]} 21... Nd7 {[%clk 0:02:29.5]} 22. Rb3 {[%clk 0:00:29]} 22...
Nf6 {[%clk 0:01:32.2]} 23. Re3 {[%clk 0:00:27.3]} 23... Ne4 {[%clk 0:01:32.5]}
24. Qd3 {[%clk 0:00:19.9]} 24... f5 {[%clk 0:01:29.1]} 25. Nf3 {[%clk
0:00:18.8]} 25... Qc7 {[%clk 0:01:21.8]} 26. Rxe4 {[%clk 0:00:19]} 26... fxe4
{[%clk 0:01:19.8]} 27. Qxe4 {[%clk 0:00:19.9]} 27... Qg7 {[%clk 0:01:15.5]} 28.
Rd1 {[%clk 0:00:18.4]} 28... Bd7 {[%clk 0:01:13.9]} 29. Ne5 {[%clk 0:00:18.5]}
29... Bb5 {[%clk 0:01:09.7]} 30. c4 {[%clk 0:00:17.3]} 30... Ba4 {[%clk
0:01:09.2]} 31. Rb1 {[%clk 0:00:16]} 31... Rab8 {[%clk 0:01:05.5]} 32. Nd3
{[%clk 0:00:14.6]} 32... Bc6 {[%clk 0:01:01.1]} 33. Qxe6+ {[%clk 0:00:14.3]}
33... Kh8 {[%clk 0:00:57.1]} 34. Nxc5 {[%clk 0:00:13.4]} 34... Qf6 {[%clk
0:00:52.2]} 35. Qxf6+ {[%clk 0:00:13.3]} 35... Rxf6 {[%clk 0:00:51.7]} 36. Nd4
{[%clk 0:00:14]} 36... Rd8 {[%clk 0:00:50.5]} 37. Nce6 {[%clk 0:00:12.4]} 37...
Rd6 {[%clk 0:00:46.7]} 38. Bg4 {[%clk 0:00:09]} 38... h5 {[%clk 0:00:44.1]} 39.
Bxh5 {[%clk 0:00:08]} 39... Rfxe6 {[%clk 0:00:44.5]} 40. Nxe6 {[%clk 0:00:08.7]}
40... Rxe6 {[%clk 0:00:45.4]} 41. Rb2 {[%clk 0:00:06.4]} 41... Re3 {[%clk
0:00:41.1]} 42. Bg4 {[%clk 0:00:05]} 42... Rc3 {[%clk 0:00:38.2]} 43. Be6 {[%clk
0:00:03.9]} 43... Kg7 {[%clk 0:00:38.3]} 44. Rf2 {[%clk 0:00:04.6]} 44... a5
{[%clk 0:00:34.4]} 45. Kh3 {[%clk 0:00:05]} 45... Re3 {[%clk 0:00:33.3]} 46. Kg4
{[%clk 0:00:05.5]} 46... Rxe6 {[%clk 0:00:33.4]} 47. Kxg5 {[%clk 0:00:05.6]}
47... Re4 {[%clk 0:00:33.1]} 0-1

[Event "Early-Titled-Tuesday-Blitz-April-02-2024"]
[Site "Chess.com"]
[Date "2024.04.02"]
[Round "7"]
[White "NovakRatko"]
[Black "ChempionBg"]
[Result "1/2-1/2"]
[WhiteElo "2443"]
[BlackElo "2300"]
[TimeControl "180+1"]
[EndTime "9:17:40 PDT"]
[Termination "Game drawn by repetition"]

1. d4 {[%clk 0:02:54.4]} 1... Nf6 {[%clk 0:02:58.2]} 2. c4 {[%clk 0:02:54.5]}
2... g6 {[%clk 0:02:58.1]} 3. Nc3 {[%clk 0:02:54.7]} 3... Bg7 {[%clk 0:02:58.8]}
4. e3 {[%clk 0:02:54.9]} 4... d6 {[%clk 0:02:59.4]} 5. e4 {[%clk 0:02:49.1]}
5... O-O {[%clk 0:02:59.8]} 6. f3 {[%clk 0:02:47.1]} 6... Nc6 {[%clk 0:02:58.4]}
7. Be3 {[%clk 0:02:46.5]} 7... e5 {[%clk 0:02:57.6]} 8. d5 {[%clk 0:02:46.8]}
8... Nd4 {[%clk 0:02:58.2]} 9. Nge2 {[%clk 0:02:47.1]} 9... Nxe2 {[%clk
0:02:43.2]} 10. Bxe2 {[%clk 0:02:46.6]} 10... Nh5 {[%clk 0:02:43.7]} 11. Qd2
{[%clk 0:02:45.6]} 11... Nf4 {[%clk 0:02:42.3]} 12. Bxf4 {[%clk 0:02:44.7]}
12... exf4 {[%clk 0:02:41.2]} 13. Qxf4 {[%clk 0:02:45]} 13... f5 {[%clk
0:02:32.8]} 14. Qd2 {[%clk 0:02:36.6]} 14... Bxc3 {[%clk 0:02:23.8]} 15. Qxc3
{[%clk 0:02:30.4]} 15... fxe4 {[%clk 0:02:20.8]} 16. O-O {[%clk 0:02:30.4]}
16... exf3 {[%clk 0:01:55.8]} 17. Rxf3 {[%clk 0:02:22.2]} 17... Bd7 {[%clk
0:01:46.9]} 18. Raf1 {[%clk 0:02:19.9]} 18... Qe7 {[%clk 0:01:44.5]} 19. Bd3
{[%clk 0:02:14.6]} 19... Rxf3 {[%clk 0:01:34]} 20. Rxf3 {[%clk 0:02:14.2]} 20...
Rf8 {[%clk 0:01:33.7]} 21. Rxf8+ {[%clk 0:02:12.3]} 21... Qxf8 {[%clk
0:01:31.4]} 22. Qd4 {[%clk 0:02:10.4]} 22... Bf5 {[%clk 0:01:24.3]} 23. Bf1
{[%clk 0:01:45.4]} 23... a6 {[%clk 0:01:22.4]} 24. b4 {[%clk 0:01:46]} 24... Qg7
{[%clk 0:01:17]} 25. Qa7 {[%clk 0:01:41.2]} 25... Qc3 {[%clk 0:01:07.6]} 26.
Qb8+ {[%clk 0:01:39.9]} 26... Kg7 {[%clk 0:01:03]} 27. Qxc7+ {[%clk 0:01:40]}
27... Kh6 {[%clk 0:01:03.1]} 28. Qxd6 {[%clk 0:01:38.4]} 28... Qe3+ {[%clk
0:00:58.7]} 29. Kh1 {[%clk 0:01:32.3]} 29... Qf2 {[%clk 0:00:57.1]} 30. h3
{[%clk 0:00:40.7]} 30... Qxf1+ {[%clk 0:00:37.2]} 31. Kh2 {[%clk 0:00:40.9]}
31... Qxc4 {[%clk 0:00:33.8]} 32. Qf8+ {[%clk 0:00:40.7]} 32... Kg5 {[%clk
0:00:29.6]} 33. Qe7+ {[%clk 0:00:37.8]} 33... Kh5 {[%clk 0:00:24.1]} 34. Qxh7+
{[%clk 0:00:33.6]} 34... Kg5 {[%clk 0:00:23.3]} 35. Qe7+ {[%clk 0:00:33]} 35...
Kh5 {[%clk 0:00:19.3]} 36. g4+ {[%clk 0:00:28.3]} 36... Bxg4 {[%clk 0:00:17.7]}
37. hxg4+ {[%clk 0:00:28.6]} 37... Kxg4 {[%clk 0:00:15.7]} 38. Qxb7 {[%clk
0:00:29.1]} 38... Qe2+ {[%clk 0:00:12.3]} 39. Kg1 {[%clk 0:00:29.3]} 39... Qe1+
{[%clk 0:00:09]} 40. Kg2 {[%clk 0:00:29.2]} 40... Qe2+ {[%clk 0:00:06.6]} 41.
Kg1 {[%clk 0:00:29.5]} 41... Qe1+ {[%clk 0:00:03.4]} 42. Kg2 {[%clk 0:00:29.7]}
42... Qe2+ {[%clk 0:00:03.6]} 43. Kg1 {[%clk 0:00:30]} 1/2-1/2

[Event "Early-Titled-Tuesday-Blitz-April-02-2024"]
[Site "Chess.com"]
[Date "2024.04.02"]
[Round "7"]
[White "IriBu"]
[Black "Aradhya2000"]
[Result "1/2-1/2"]
[WhiteElo "2594"]
[BlackElo "2753"]
[TimeControl "180+1"]
[EndTime "9:17:41 PDT"]
[Termination "Game drawn by repetition"]

1. e4 {[%clk 0:03:00.9]} 1... e5 {[%clk 0:03:00]} 2. Nc3 {[%clk 0:02:57.6]} 2...
Nf6 {[%clk 0:02:59.6]} 3. Nf3 {[%clk 0:02:55]} 3... Nc6 {[%clk 0:02:59.5]} 4. d4
{[%clk 0:02:54.1]} 4... Bb4 {[%clk 0:02:59.9]} 5. dxe5 {[%clk 0:02:47.5]} 5...
Nxe4 {[%clk 0:02:59.8]} 6. Qd3 {[%clk 0:02:33.8]} 6... d5 {[%clk 0:02:58.7]} 7.
a3 {[%clk 0:02:28.4]} 7... Bxc3+ {[%clk 0:02:41.4]} 8. bxc3 {[%clk 0:02:27.6]}
8... Bf5 {[%clk 0:02:42]} 9. Qe3 {[%clk 0:02:22]} 9... O-O {[%clk 0:02:40.4]}
10. Nd4 {[%clk 0:02:20.4]} 10... Nxd4 {[%clk 0:01:51.3]} 11. cxd4 {[%clk
0:02:21.3]} 11... c5 {[%clk 0:01:51.5]} 12. Bd2 {[%clk 0:02:21.1]} 12... Rc8
{[%clk 0:01:48]} 13. Bd3 {[%clk 0:02:15.4]} 13... f6 {[%clk 0:01:40.4]} 14. O-O
{[%clk 0:02:05.2]} 14... fxe5 {[%clk 0:01:37.7]} 15. dxe5 {[%clk 0:02:00.6]}
15... d4 {[%clk 0:01:27]} 16. Qe2 {[%clk 0:01:53.6]} 16... Nxd2 {[%clk
0:01:26.8]} 17. Qxd2 {[%clk 0:01:51.8]} 17... Bxd3 {[%clk 0:01:23.6]} 18. cxd3
{[%clk 0:01:52.7]} 18... Qd5 {[%clk 0:01:21.9]} 19. f4 {[%clk 0:01:48.2]} 19...
b5 {[%clk 0:01:21.2]} 20. Rad1 {[%clk 0:01:40.1]} 20... Rfd8 {[%clk 0:01:15.2]}
21. Rde1 {[%clk 0:01:29.5]} 21... c4 {[%clk 0:01:15.1]} 22. f5 {[%clk
0:01:29.5]} 22... c3 {[%clk 0:00:54.8]} 23. Qg5 {[%clk 0:01:27.8]} 23... Rf8
{[%clk 0:00:46.7]} 24. f6 {[%clk 0:01:17.4]} 24... Rc7 {[%clk 0:00:45.8]} 25.
Rf2 {[%clk 0:01:10.1]} 25... c2 {[%clk 0:00:33.2]} 26. Rxc2 {[%clk 0:01:05.6]}
26... Rcf7 {[%clk 0:00:29.3]} 27. Rf2 {[%clk 0:01:02.2]} 27... h6 {[%clk
0:00:27.8]} 28. Qg3 {[%clk 0:00:57]} 28... Kh7 {[%clk 0:00:17.5]} 29. e6 {[%clk
0:00:27.5]} 29... Rxf6 {[%clk 0:00:17.6]} 30. Rxf6 {[%clk 0:00:21.3]} 30... gxf6
{[%clk 0:00:17.4]} 31. e7 {[%clk 0:00:18.2]} 31... Re8 {[%clk 0:00:17.4]} 32.
Qf4 {[%clk 0:00:16.9]} 32... Kg6 {[%clk 0:00:13.9]} 33. Re4 {[%clk 0:00:14.9]}
33... Qg5 {[%clk 0:00:13]} 34. Qf2 {[%clk 0:00:12.5]} 34... Qc1+ {[%clk
0:00:12.9]} 35. Re1 {[%clk 0:00:12.1]} 35... Qc5 {[%clk 0:00:13.7]} 36. Qe2
{[%clk 0:00:11.1]} 36... Kf7 {[%clk 0:00:13.1]} 37. Qe6+ {[%clk 0:00:10.6]}
37... Kg7 {[%clk 0:00:13]} 38. h3 {[%clk 0:00:10.9]} 38... a5 {[%clk 0:00:08.8]}
39. Qd7 {[%clk 0:00:10]} 39... Kf7 {[%clk 0:00:08.7]} 40. Qe6+ {[%clk
0:00:10.4]} 40... Kg7 {[%clk 0:00:09.1]} 41. Qg4+ {[%clk 0:00:10.6]} 41... Kf7
{[%clk 0:00:08.9]} 42. Qe6+ {[%clk 0:00:09.2]} 42... Kg7 {[%clk 0:00:09.3]}
1/2-1/2

[Event "Early-Titled-Tuesday-Blitz-April-02-2024"]
[Site "Chess.com"]
[Date "2024.04.02"]
[Round "7"]
[White "HeroWilczek"]
[Black "MatthewG-p4p"]
[Result "0-1"]
[WhiteElo "2548"]
[BlackElo "2861"]
[TimeControl "180+1"]
[EndTime "9:17:41 PDT"]
[Termination "MatthewG-p4p won by resignation"]

1. e4 {[%clk 0:03:00.9]} 1... e6 {[%clk 0:02:56.7]} 2. d4 {[%clk 0:02:57.8]}
2... d5 {[%clk 0:02:57.6]} 3. Nc3 {[%clk 0:02:58.5]} 3... Bb4 {[%clk 0:02:57.4]}
4. e5 {[%clk 0:02:57.8]} 4... Ne7 {[%clk 0:02:57.8]} 5. Bd3 {[%clk 0:02:55.4]}
5... c5 {[%clk 0:02:57.9]} 6. a3 {[%clk 0:02:53.6]} 6... Bxc3+ {[%clk
0:02:49.4]} 7. bxc3 {[%clk 0:02:53.2]} 7... Qc7 {[%clk 0:02:48.2]} 8. Qg4 {[%clk
0:02:44]} 8... cxd4 {[%clk 0:02:47.4]} 9. Ne2 {[%clk 0:02:26.4]} 9... dxc3
{[%clk 0:02:31.1]} 10. Qxg7 {[%clk 0:02:19.5]} 10... Rg8 {[%clk 0:02:31.4]} 11.
Qxh7 {[%clk 0:02:20]} 11... Nbc6 {[%clk 0:02:31.9]} 12. f4 {[%clk 0:02:04.6]}
12... Bd7 {[%clk 0:02:31.5]} 13. Qh3 {[%clk 0:02:00.1]} 13... O-O-O {[%clk
0:02:27]} 14. Qf3 {[%clk 0:01:59.2]} 14... d4 {[%clk 0:02:21.7]} 15. h4 {[%clk
0:01:56.2]} 15... Qb6 {[%clk 0:02:10.2]} 16. h5 {[%clk 0:01:53.8]} 16... Na5
{[%clk 0:02:08.7]} 17. h6 {[%clk 0:01:35.1]} 17... Bc6 {[%clk 0:02:06.9]} 18.
Be4 {[%clk 0:01:35.6]} 18... d3 {[%clk 0:01:41.7]} 19. cxd3 {[%clk 0:01:25.7]}
19... c2 {[%clk 0:01:33.6]} 20. h7 {[%clk 0:01:23.3]} 20... Rh8 {[%clk
0:01:31.7]} 21. Be3 {[%clk 0:01:13.3]} 21... Qb2 {[%clk 0:01:20.8]} 22. Kf2
{[%clk 0:01:09.8]} 22... Rxd3 {[%clk 0:01:10.8]} 23. Rac1 {[%clk 0:00:58.2]}
23... Nc4 {[%clk 0:00:23.6]} 24. Bxd3 {[%clk 0:00:33.3]} 24... Bxf3 {[%clk
0:00:22.5]} 25. gxf3 {[%clk 0:00:32.9]} 25... Nxe3 {[%clk 0:00:20.8]} 26. Kxe3
{[%clk 0:00:33.5]} 26... Qb6+ {[%clk 0:00:14]} 27. Kd2 {[%clk 0:00:32.4]} 27...
Qa5+ {[%clk 0:00:11.2]} 28. Ke3 {[%clk 0:00:30]} 28... Qxa3 {[%clk 0:00:09]} 29.
Rxc2+ {[%clk 0:00:29.9]} 29... Kb8 {[%clk 0:00:09.8]} 30. Kd2 {[%clk 0:00:25.8]}
30... Rd8 {[%clk 0:00:05]} 31. Nc3 {[%clk 0:00:23]} 31... Rh8 {[%clk 0:00:04.4]}
32. Ne4 {[%clk 0:00:20.5]} 32... Qb4+ {[%clk 0:00:04.9]} 33. Nc3 {[%clk
0:00:19]} 33... Nd5 {[%clk 0:00:05.8]} 34. Be4 {[%clk 0:00:16.3]} 34... Qd4+
{[%clk 0:00:05.7]} 35. Kc1 {[%clk 0:00:10.8]} 35... Nxc3 {[%clk 0:00:06]} 36.
Rd2 {[%clk 0:00:08.3]} 36... Qc5 {[%clk 0:00:04.8]} 37. Rc2 {[%clk 0:00:08.2]}
37... Qe3+ {[%clk 0:00:05.1]} 38. Kb2 {[%clk 0:00:08.1]} 38... Nxe4 {[%clk
0:00:05.8]} 39. fxe4 {[%clk 0:00:08.1]} 39... Qd4+ {[%clk 0:00:06.3]} 40. Kb1
{[%clk 0:00:08.2]} 40... Qxe4 {[%clk 0:00:07.2]} 41. Rg1 {[%clk 0:00:08.3]}
41... Qxh7 {[%clk 0:00:06.7]} 0-1

[Event "Early-Titled-Tuesday-Blitz-April-02-2024"]
[Site "Chess.com"]
[Date "2024.04.02"]
[Round "7"]
[White "CSB7"]
[Black "Iball95"]
[Result "0-1"]
[WhiteElo "2776"]
[BlackElo "2942"]
[TimeControl "180+1"]
[EndTime "9:17:43 PDT"]
[Termination "Iball95 won by resignation"]

1. e4 {[%clk 0:02:59.5]} 1... c5 {[%clk 0:02:59.8]} 2. Nf3 {[%clk 0:02:59.1]}
2... e6 {[%clk 0:03:00.3]} 3. g3 {[%clk 0:02:48.8]} 3... d5 {[%clk 0:03:00.1]}
4. exd5 {[%clk 0:02:49.7]} 4... exd5 {[%clk 0:03:01]} 5. d4 {[%clk 0:02:48.9]}
5... Nc6 {[%clk 0:03:00.5]} 6. Bg2 {[%clk 0:02:48.7]} 6... Nf6 {[%clk
0:03:00.8]} 7. O-O {[%clk 0:02:47.8]} 7... Be7 {[%clk 0:03:01.2]} 8. dxc5 {[%clk
0:02:38.7]} 8... Bxc5 {[%clk 0:03:02.1]} 9. Nc3 {[%clk 0:02:35.6]} 9... O-O
{[%clk 0:03:00.9]} 10. h3 {[%clk 0:02:26.8]} 10... h6 {[%clk 0:02:58.4]} 11. a3
{[%clk 0:02:23.4]} 11... a5 {[%clk 0:02:57]} 12. Qd3 {[%clk 0:01:43.9]} 12...
Be6 {[%clk 0:02:53.8]} 13. Bf4 {[%clk 0:01:33]} 13... Re8 {[%clk 0:02:51.8]} 14.
Rad1 {[%clk 0:01:30.2]} 14... Rc8 {[%clk 0:02:44.9]} 15. Kh2 {[%clk 0:01:23.2]}
15... Qd7 {[%clk 0:02:10.4]} 16. g4 {[%clk 0:01:08.8]} 16... Rcd8 {[%clk
0:02:00]} 17. Bg3 {[%clk 0:01:03.1]} 17... d4 {[%clk 0:01:58]} 18. Nb5 {[%clk
0:00:58.6]} 18... Bd5 {[%clk 0:01:51.9]} 19. Nc7 {[%clk 0:00:52]} 19... Re7
{[%clk 0:01:19.3]} 20. Nxd5 {[%clk 0:00:51.1]} 20... Nxd5 {[%clk 0:01:20.2]} 21.
Rfe1 {[%clk 0:00:46.1]} 21... Rxe1 {[%clk 0:01:15.5]} 22. Rxe1 {[%clk
0:00:45.9]} 22... Nf6 {[%clk 0:01:16.1]} 23. Ne5 {[%clk 0:00:37.2]} 23... Nxe5
{[%clk 0:01:15.8]} 24. Bxe5 {[%clk 0:00:38.1]} 24... Bd6 {[%clk 0:00:59.9]} 25.
f4 {[%clk 0:00:33.5]} 25... Bxe5 {[%clk 0:00:58.2]} 26. fxe5 {[%clk 0:00:34.4]}
26... Nh7 {[%clk 0:00:56.4]} 27. Qe4 {[%clk 0:00:25.4]} 27... Ng5 {[%clk
0:00:36.9]} 28. Qxb7 {[%clk 0:00:25.2]} 28... Qxb7 {[%clk 0:00:37.7]} 29. Bxb7
{[%clk 0:00:25.4]} 29... Rb8 {[%clk 0:00:38.5]} 30. Bg2 {[%clk 0:00:14.5]} 30...
Rxb2 {[%clk 0:00:38.3]} 31. h4 {[%clk 0:00:15.1]} 31... Ne6 {[%clk 0:00:37.4]}
32. Rc1 {[%clk 0:00:04.5]} 32... Nf4 {[%clk 0:00:33.2]} 33. Be4 {[%clk
0:00:03.2]} 33... d3 {[%clk 0:00:31.3]} 34. Kh1 {[%clk 0:00:02]} 34... Ne2
{[%clk 0:00:17]} 35. Rd1 {[%clk 0:00:02.3]} 35... Ng3+ {[%clk 0:00:17.3]} 36.
Kg1 {[%clk 0:00:01.8]} 36... Nxe4 {[%clk 0:00:18.2]} 37. Rxd3 {[%clk 0:00:02.5]}
37... Rxc2 {[%clk 0:00:17.9]} 38. Rd8+ {[%clk 0:00:03.1]} 38... Kh7 {[%clk
0:00:18.6]} 39. Rd7 {[%clk 0:00:04]} 39... Rc5 {[%clk 0:00:17.7]} 40. Rxf7
{[%clk 0:00:03.8]} 40... Rxe5 {[%clk 0:00:18.3]} 41. Ra7 {[%clk 0:00:04.5]}
41... Nf6 {[%clk 0:00:18.4]} 0-1

[Event "Early-Titled-Tuesday-Blitz-April-02-2024"]
[Site "Chess.com"]
[Date "2024.04.02"]
[Round "7"]
[White "Darkdefense15"]
[Black "karinachess1"]
[Result "0-1"]
[WhiteElo "2339"]
[BlackElo "2616"]
[TimeControl "180+1"]
[EndTime "9:17:43 PDT"]
[Termination "karinachess1 won by resignation"]

1. d4 {[%clk 0:03:00.9]} 1... Nf6 {[%clk 0:02:59.9]} 2. Bf4 {[%clk 0:03:00.4]}
2... e6 {[%clk 0:02:57.5]} 3. e3 {[%clk 0:02:59.9]} 3... b6 {[%clk 0:02:56.1]}
4. Qf3 {[%clk 0:03:00.3]} 4... d5 {[%clk 0:02:37.7]} 5. Nc3 {[%clk 0:03:00.4]}
5... Bd6 {[%clk 0:02:31.5]} 6. O-O-O {[%clk 0:02:58.1]} 6... Bb7 {[%clk
0:02:20.7]} 7. Bd3 {[%clk 0:02:53.7]} 7... Nc6 {[%clk 0:02:05.2]} 8. g4 {[%clk
0:02:49.4]} 8... Nb4 {[%clk 0:02:03.9]} 9. Bb5+ {[%clk 0:02:45.6]} 9... c6
{[%clk 0:02:02.4]} 10. Be2 {[%clk 0:02:44.4]} 10... c5 {[%clk 0:01:51.5]} 11. g5
{[%clk 0:02:40.5]} 11... Ne4 {[%clk 0:01:35.8]} 12. Bb5+ {[%clk 0:02:36.5]}
12... Ke7 {[%clk 0:01:32.2]} 13. Bxd6+ {[%clk 0:02:34]} 13... Qxd6 {[%clk
0:01:30.1]} 14. Nxe4 {[%clk 0:02:31.5]} 14... dxe4 {[%clk 0:01:28.8]} 15. Qg3
{[%clk 0:02:09.1]} 15... Nxa2+ {[%clk 0:01:01.7]} 16. Kb1 {[%clk 0:02:08.4]}
16... Qxg3 {[%clk 0:01:02.6]} 17. hxg3 {[%clk 0:02:08.2]} 17... Nb4 {[%clk
0:01:01.3]} 18. dxc5 {[%clk 0:02:08.5]} 18... Rad8 {[%clk 0:00:59.9]} 19. Ne2
{[%clk 0:01:59.9]} 19... bxc5 {[%clk 0:00:58.9]} 20. Rxd8 {[%clk 0:02:00.2]}
20... Rxd8 {[%clk 0:00:54.1]} 21. Kc1 {[%clk 0:01:52.2]} 21... Rd5 {[%clk
0:00:41.5]} 22. Rxh7 {[%clk 0:01:45.1]} 22... Rxg5 {[%clk 0:00:40.9]} 23. Nf4
{[%clk 0:01:42.8]} 23... e5 {[%clk 0:00:30.4]} 24. Ne2 {[%clk 0:01:41.1]} 24...
Rf5 {[%clk 0:00:27.8]} 25. Rh2 {[%clk 0:01:24.9]} 25... Rf6 {[%clk 0:00:28.2]}
26. Nc3 {[%clk 0:01:12.6]} 26... Rh6 {[%clk 0:00:22.5]} 27. Rxh6 {[%clk
0:01:08]} 27... gxh6 {[%clk 0:00:23.4]} 28. Bc4 {[%clk 0:01:04.4]} 28... f5
{[%clk 0:00:22.8]} 29. Kd2 {[%clk 0:01:03.8]} 29... Kf6 {[%clk 0:00:20.2]} 30.
Nb5 {[%clk 0:00:57.6]} 30... a5 {[%clk 0:00:20.5]} 31. c3 {[%clk 0:00:56.7]}
31... Nc6 {[%clk 0:00:16.3]} 32. Bd5 {[%clk 0:00:56.2]} 32... Nd8 {[%clk
0:00:15.8]} 33. Nc7 {[%clk 0:00:45.5]} 33... h5 {[%clk 0:00:13.9]} 34. Bxb7
{[%clk 0:00:37.8]} 34... Nxb7 {[%clk 0:00:13.9]} 35. Ne8+ {[%clk 0:00:28.5]}
35... Kg5 {[%clk 0:00:14.2]} 36. Nc7 {[%clk 0:00:26.7]} 36... Nd8 {[%clk
0:00:14.2]} 37. Na6 {[%clk 0:00:24]} 37... Ne6 {[%clk 0:00:14.5]} 38. Ke2 {[%clk
0:00:21.6]} 38... f4 {[%clk 0:00:14.9]} 39. exf4+ {[%clk 0:00:21.3]} 39... exf4
{[%clk 0:00:15.8]} 40. Nb8 {[%clk 0:00:18]} 40... Kg4 {[%clk 0:00:12.6]} 41.
gxf4 {[%clk 0:00:17.2]} 41... Nxf4+ {[%clk 0:00:12.6]} 42. Kf1 {[%clk
0:00:17.3]} 42... h4 {[%clk 0:00:12.5]} 43. Nd7 {[%clk 0:00:16.6]} 43... Nd3
{[%clk 0:00:10.1]} 44. b3 {[%clk 0:00:15.4]} 44... h3 {[%clk 0:00:08.1]} 45.
Nf6+ {[%clk 0:00:15.3]} 45... Kf3 {[%clk 0:00:08.6]} 46. Nh5 {[%clk 0:00:14.1]}
46... h2 {[%clk 0:00:07.8]} 47. Ng3 {[%clk 0:00:14.7]} 47... e3 {[%clk
0:00:08.4]} 0-1

[Event "Early-Titled-Tuesday-Blitz-April-02-2024"]
[Site "Chess.com"]
[Date "2024.04.02"]
[Round "7"]
[White "Felix-Rose"]
[Black "LeoLV10"]
[Result "1-0"]
[WhiteElo "2338"]
[BlackElo "2502"]
[TimeControl "180+1"]
[EndTime "9:17:43 PDT"]
[Termination "Felix-Rose won on time"]

1. e4 {[%clk 0:03:00]} 1... c6 {[%clk 0:02:59.7]} 2. d4 {[%clk 0:03:00.2]} 2...
d5 {[%clk 0:03:00.6]} 3. e5 {[%clk 0:03:00.4]} 3... Bf5 {[%clk 0:03:00.5]} 4. h4
{[%clk 0:03:00.7]} 4... h5 {[%clk 0:03:01]} 5. Bd3 {[%clk 0:03:00.8]} 5... Bxd3
{[%clk 0:03:00]} 6. Qxd3 {[%clk 0:03:01.7]} 6... e6 {[%clk 0:03:00.2]} 7. Bg5
{[%clk 0:03:02]} 7... Qb6 {[%clk 0:02:59.7]} 8. Nd2 {[%clk 0:03:02.3]} 8... Nd7
{[%clk 0:02:59.1]} 9. Ngf3 {[%clk 0:02:59.3]} 9... c5 {[%clk 0:02:59.2]} 10. c4
{[%clk 0:02:59.2]} 10... cxd4 {[%clk 0:02:54.2]} 11. cxd5 {[%clk 0:02:57.4]}
11... Nc5 {[%clk 0:02:20.5]} 12. Qxd4 {[%clk 0:02:43.4]} 12... Be7 {[%clk
0:02:19.9]} 13. d6 {[%clk 0:02:29.3]} 13... Bxg5 {[%clk 0:02:17.5]} 14. hxg5
{[%clk 0:02:29.8]} 14... Nd7 {[%clk 0:02:15.6]} 15. Qc3 {[%clk 0:02:21.7]} 15...
Qc5 {[%clk 0:02:09.5]} 16. Rc1 {[%clk 0:01:50.9]} 16... Qxc3 {[%clk 0:02:08.1]}
17. Rxc3 {[%clk 0:01:51.4]} 17... f6 {[%clk 0:02:09]} 18. Rc7 {[%clk 0:00:55]}
18... Rb8 {[%clk 0:01:36.8]} 19. O-O {[%clk 0:00:50.7]} 19... h4 {[%clk
0:01:34.5]} 20. exf6 {[%clk 0:00:43.4]} 20... gxf6 {[%clk 0:01:33.8]} 21. Re1
{[%clk 0:00:43]} 21... e5 {[%clk 0:01:31.5]} 22. gxf6 {[%clk 0:00:41.9]} 22...
Ngxf6 {[%clk 0:01:23.9]} 23. Nxe5 {[%clk 0:00:40.3]} 23... Nxe5 {[%clk 0:01:24]}
24. Rxe5+ {[%clk 0:00:41.2]} 24... Kd8 {[%clk 0:01:24.1]} 25. Ree7 {[%clk
0:00:28.6]} 25... Nd5 {[%clk 0:00:41.3]} 26. Rcd7+ {[%clk 0:00:24.3]} 26... Kc8
{[%clk 0:00:41.1]} 27. Rg7 {[%clk 0:00:11.3]} 27... a5 {[%clk 0:00:22.9]} 28.
Nc4 {[%clk 0:00:10.3]} 28... b6 {[%clk 0:00:20.6]} 29. Ne3 {[%clk 0:00:08.7]}
29... Nf6 {[%clk 0:00:15.9]} 30. Rc7+ {[%clk 0:00:09]} 30... Kd8 {[%clk
0:00:16.5]} 31. Nf5 {[%clk 0:00:08]} 31... Rf8 {[%clk 0:00:14.2]} 32. Ne7 {[%clk
0:00:08.3]} 32... Ke8 {[%clk 0:00:03.6]} 33. Nc6 {[%clk 0:00:08.4]} 33... Rg8
{[%clk 0:00:01.5]} 34. Rge7+ {[%clk 0:00:06.4]} 34... Kf8 {[%clk 0:00:01.7]} 35.
Nxb8 {[%clk 0:00:06.9]} 35... h3 {[%clk 0:00:02.1]} 36. g3 {[%clk 0:00:07.2]}
36... Rg5 {[%clk 0:00:01.4]} 37. Rc8+ {[%clk 0:00:06.8]} 1-0